[Event "Titled Tuesday Blitz July 11 Late 2023"]
[White "He, Anthony"]
[Black "Forgacs, Attila Jr."]
[WhiteFideId "2088215"]
[BlackFideId "773654"]
[WhiteElo "2990"]
[BlackElo "2501"]
[Result "1-0"]
[Round "1"]
[TimeControl "180+2"]
[Date "2023.07.11"]
[WhiteClock "0:00:22"]
[BlackClock "0:00:00"]
[Board "18"]

1. d4 {[%clk 0:02:57]}  Nf6 {[%clk 0:02:59]} 2. Nc3 {[%clk 0:02:54]}  d5 {[%clk 0:02:58]} 3. Bf4 {[%clk 0:02:53]}  g6 {[%clk 0:02:51]} 4. e3 {[%clk 0:02:53]}  Bg7 {[%clk 0:02:50]} 5. h4 {[%clk 0:02:53]}  h5 {[%clk 0:02:50]} 6. Nf3 {[%clk 0:02:51]}  O-O {[%clk 0:02:47]} 7. Be2 {[%clk 0:02:43]}  c5 {[%clk 0:02:44]} 8. O-O {[%clk 0:02:41]}  cxd4 {[%clk 0:02:42]} 9. exd4 {[%clk 0:02:39]}  Nc6 {[%clk 0:02:43]} 10. Ne5 {[%clk 0:02:33]}  Bf5 {[%clk 0:02:30]} 11. Bf3 {[%clk 0:02:30]}  Ne4 {[%clk 0:02:18]} 12. Ne2 {[%clk 0:02:26]}  Rc8 {[%clk 0:02:02]} 13. c3 {[%clk 0:02:26]}  Nxe5 {[%clk 0:01:46]} 14. dxe5 {[%clk 0:02:23]}  e6 {[%clk 0:01:42]} 15. g3 {[%clk 0:02:18]}  Qb6 {[%clk 0:01:35]} 16. Qb3 {[%clk 0:02:17]}  Qc7 {[%clk 0:01:19]} 17. Nd4 {[%clk 0:01:32]}  Bxe5 {[%clk 0:01:12]} 18. Bxe5 {[%clk 0:01:31]}  Qxe5 {[%clk 0:01:12]} 19. Rfe1 {[%clk 0:01:31]}  Qc7 {[%clk 0:01:05]} 20. Rad1 {[%clk 0:01:19]}  a6 {[%clk 0:00:54]} 21. Nxf5 {[%clk 0:01:09]}  gxf5 {[%clk 0:00:47]} 22. c4 {[%clk 0:01:02]}  Qxc4 {[%clk 0:00:30]} 23. Qxb7 {[%clk 0:00:59]}  Rb8 {[%clk 0:00:25]} 24. Qe7 {[%clk 0:00:55]}  Qc5 {[%clk 0:00:15]} 25. Qxc5 {[%clk 0:00:51]}  Nxc5 {[%clk 0:00:16]} 26. b3 {[%clk 0:00:51]}  f4 {[%clk 0:00:13]} 27. gxf4 {[%clk 0:00:51]}  Rb4 {[%clk 0:00:13]} 28. Kg2 {[%clk 0:00:48]}  Rxf4 {[%clk 0:00:13]} 29. Re5 {[%clk 0:00:46]}  Kg7 {[%clk 0:00:08]} 30. Kg3 {[%clk 0:00:46]}  Rb4 {[%clk 0:00:03]} 31. Rxh5 {[%clk 0:00:42]}  Rg8 {[%clk 0:00:04]} 32. Rc1 {[%clk 0:00:41]}  Kf6+ {[%clk 0:00:04]} 33. Kh3 {[%clk 0:00:40]}  Ne4 {[%clk 0:00:04]} 34. Rc2 {[%clk 0:00:39]}  Rb7 {[%clk 0:00:02]} 35. Bxe4 {[%clk 0:00:36]}  dxe4 {[%clk 0:00:03]} 36. Ra5 {[%clk 0:00:37]}  Rb6 {[%clk 0:00:02]} 37. Ra4 {[%clk 0:00:37]}  Rd8 {[%clk 0:00:02]} 38. Rxe4 {[%clk 0:00:37]}  Rd5 {[%clk 0:00:02]} 39. f3 {[%clk 0:00:37]}  Rbd6 {[%clk 0:00:02]} 40. Kg3 {[%clk 0:00:35]}  Rf5 {[%clk 0:00:02]} 41. Rf4 {[%clk 0:00:33]}  Rxf4 {[%clk 0:00:02]} 42. Kxf4 {[%clk 0:00:34]}  Rd4+ {[%clk 0:00:03]} 43. Kg3 {[%clk 0:00:35]}  Kf5 {[%clk 0:00:04]} 44. Rc5+ {[%clk 0:00:34]}  e5 {[%clk 0:00:04]} 45. Rc6 {[%clk 0:00:33]}  Rd3 {[%clk 0:00:03]} 46. Rc4 {[%clk 0:00:27]}  f6 {[%clk 0:00:02]} 47. Ra4 {[%clk 0:00:27]}  Rd6 {[%clk 0:00:02]} 48. Kf2 {[%clk 0:00:28]}  Rc6 {[%clk 0:00:02]} 49. Ke3 {[%clk 0:00:28]}  Ke6 {[%clk 0:00:02]} 50. b4 {[%clk 0:00:25]}  f5 {[%clk 0:00:01]} 51. Ra5 {[%clk 0:00:23]}  Rc3+ {[%clk 0:00:01]} 52. Ke2 {[%clk 0:00:24]}  Rc6 {[%clk 0:00:01]} 53. a4 {[%clk 0:00:23]}  e4 {[%clk 0:00:01]} 54. fxe4 {[%clk 0:00:22]}  fxe4 {[%clk 0:00:02]} 55. Ke3 {[%clk 0:00:21]}  Rc3+ {[%clk 0:00:02]} 56. Kd4 {[%clk 0:00:21]}  Rh3 {[%clk 0:00:02]} 57. Rxa6+ {[%clk 0:00:20]}  Kd7 {[%clk 0:00:02]} 58. Rh6 {[%clk 0:00:19]}  e3 {[%clk 0:00:03]} 59. Kd3 {[%clk 0:00:19]}  Ke7 {[%clk 0:00:02]} 60. a5 {[%clk 0:00:19]}  Kf7 {[%clk 0:00:03]} 61. a6 {[%clk 0:00:19]}  Kg7 {[%clk 0:00:03]} 62. a7 {[%clk 0:00:19]}  Kxh6 {[%clk 0:00:03]} 63. a8=Q {[%clk 0:00:19]}  Rxh4 {[%clk 0:00:03]} 64. Qh8+ {[%clk 0:00:20]}  Kg5 {[%clk 0:00:04]} 65. Qe5+ {[%clk 0:00:20]}  Kg6 {[%clk 0:00:02]} 66. b5 {[%clk 0:00:21]}  Rh5 {[%clk 0:00:01]} 67. Qd6+ {[%clk 0:00:21]}  Kf7 {[%clk 0:00:01]} 68. b6 {[%clk 0:00:21]}  Rh1 {[%clk 0:00:01]} 69. Qd7+ {[%clk 0:00:21]}  Kf8 {[%clk 0:00:00]} 70. Qc8+ {[%clk 0:00:22]} 1-0


[Site "https://www.chess.com"]

[Event "Titled Tuesday Blitz July 11 Late 2023"]
[White "Oparin, Grigoriy"]
[Black "Dragomirescu, Robin-Alexandru"]
[WhiteFideId "24125890"]
[BlackFideId "1213849"]
[WhiteElo "2987"]
[BlackElo "2500"]
[Result "1/2-1/2"]
[Round "1"]
[TimeControl "180+2"]
[Date "2023.07.11"]
[WhiteClock "0:00:19"]
[BlackClock "0:00:10"]
[Board "20"]

1. e4 {[%clk 0:03:00]}  g6 {[%clk 0:02:58]} 2. d4 {[%clk 0:03:00]}  Nf6 {[%clk 0:02:59]} 3. Nf3 {[%clk 0:03:01]}  Nxe4 {[%clk 0:02:59]} 4. c4 {[%clk 0:03:01]}  Bg7 {[%clk 0:02:57]} 5. Bd3 {[%clk 0:03:01]}  Nf6 {[%clk 0:02:56]} 6. O-O {[%clk 0:03:01]}  d5 {[%clk 0:02:55]} 7. cxd5 {[%clk 0:02:57]}  Nxd5 {[%clk 0:02:54]} 8. Nc3 {[%clk 0:02:58]}  O-O {[%clk 0:02:53]} 9. Re1 {[%clk 0:02:58]}  Bg4 {[%clk 0:02:45]} 10. Bg5 {[%clk 0:02:49]}  Nf6 {[%clk 0:02:11]} 11. h3 {[%clk 0:02:42]}  Bxf3 {[%clk 0:02:11]} 12. Qxf3 {[%clk 0:02:43]}  c6 {[%clk 0:02:00]} 13. Rad1 {[%clk 0:02:38]}  Nbd7 {[%clk 0:02:00]} 14. Bc4 {[%clk 0:02:33]}  Nb6 {[%clk 0:01:57]} 15. Bb3 {[%clk 0:02:31]}  h6 {[%clk 0:01:42]} 16. Bxf6 {[%clk 0:02:27]}  Bxf6 {[%clk 0:01:41]} 17. d5 {[%clk 0:02:03]}  Bxc3 {[%clk 0:01:37]} 18. dxc6 {[%clk 0:02:03]}  Bxe1 {[%clk 0:01:33]} 19. Rxd8 {[%clk 0:02:03]}  Raxd8 {[%clk 0:01:33]} 20. Qe4 {[%clk 0:01:42]}  e6 {[%clk 0:01:03]} 21. Qxe1 {[%clk 0:01:42]}  bxc6 {[%clk 0:01:02]} 22. Qc1 {[%clk 0:01:42]}  Kg7 {[%clk 0:00:50]} 23. Qxc6 {[%clk 0:01:42]}  Nd5 {[%clk 0:00:50]} 24. Qa4 {[%clk 0:01:38]}  Ra8 {[%clk 0:00:28]} 25. Bxd5 {[%clk 0:01:34]}  exd5 {[%clk 0:00:29]} 26. Qd4+ {[%clk 0:01:34]}  Kg8 {[%clk 0:00:30]} 27. Qxd5 {[%clk 0:01:34]}  Rfd8 {[%clk 0:00:30]} 28. Qf3 {[%clk 0:01:32]}  Rab8 {[%clk 0:00:29]} 29. b3 {[%clk 0:01:30]}  Rb6 {[%clk 0:00:29]} 30. g4 {[%clk 0:01:25]}  Re6 {[%clk 0:00:28]} 31. Kg2 {[%clk 0:01:21]}  a6 {[%clk 0:00:28]} 32. Qc3 {[%clk 0:01:19]}  Rd5 {[%clk 0:00:24]} 33. Kg3 {[%clk 0:01:14]}  Rd7 {[%clk 0:00:19]} 34. f3 {[%clk 0:01:14]}  Rdd6 {[%clk 0:00:19]} 35. b4 {[%clk 0:01:13]}  Rc6 {[%clk 0:00:19]} 36. Qd3 {[%clk 0:01:11]}  Rcd6 {[%clk 0:00:19]} 37. Qc4 {[%clk 0:01:11]}  Rc6 {[%clk 0:00:19]} 38. Qd5 {[%clk 0:01:11]}  Rcd6 {[%clk 0:00:19]} 39. Qa8+ {[%clk 0:01:11]}  Kg7 {[%clk 0:00:19]} 40. Qc8 {[%clk 0:01:07]}  Rc6 {[%clk 0:00:19]} 41. Qd7 {[%clk 0:01:06]}  Rcd6 {[%clk 0:00:19]} 42. Qc7 {[%clk 0:01:07]}  Rc6 {[%clk 0:00:20]} 43. Qa7 {[%clk 0:01:07]}  Rcd6 {[%clk 0:00:20]} 44. a4 {[%clk 0:01:07]}  Rc6 {[%clk 0:00:20]} 45. Qd4+ {[%clk 0:01:07]}  Kg8 {[%clk 0:00:19]} 46. Qf4 {[%clk 0:01:05]}  Kg7 {[%clk 0:00:19]} 47. Qd4+ {[%clk 0:01:05]}  Kg8 {[%clk 0:00:19]} 48. h4 {[%clk 0:01:06]}  Rb6 {[%clk 0:00:18]} 49. h5 {[%clk 0:00:58]}  gxh5 {[%clk 0:00:17]} 50. gxh5 {[%clk 0:00:59]}  Rbd6 {[%clk 0:00:17]} 51. Qc5 {[%clk 0:00:58]}  Rc6 {[%clk 0:00:17]} 52. Qf5 {[%clk 0:00:58]}  Rf6 {[%clk 0:00:16]} 53. Qd5 {[%clk 0:00:58]}  Rc3 {[%clk 0:00:15]} 54. Kg4 {[%clk 0:00:52]}  Rcc6 {[%clk 0:00:14]} 55. f4 {[%clk 0:00:52]}  Kg7 {[%clk 0:00:14]} 56. Qd4 {[%clk 0:00:51]}  Rd6 {[%clk 0:00:14]} 57. Qb2 {[%clk 0:00:51]}  Rc6 {[%clk 0:00:14]} 58. b5 {[%clk 0:00:49]}  axb5 {[%clk 0:00:15]} 59. Qxb5 {[%clk 0:00:49]}  Rb6 {[%clk 0:00:15]} 60. Qd5 {[%clk 0:00:49]}  Ra6 {[%clk 0:00:15]} 61. a5 {[%clk 0:00:49]}  Rad6 {[%clk 0:00:16]} 62. Qe5 {[%clk 0:00:49]}  Re6 {[%clk 0:00:16]} 63. Qa1 {[%clk 0:00:49]}  Ra6 {[%clk 0:00:16]} 64. f5 {[%clk 0:00:48]}  Rc6 {[%clk 0:00:16]} 65. Qd4 {[%clk 0:00:47]}  Ra6 {[%clk 0:00:16]} 66. Qb4 {[%clk 0:00:47]}  Rac6 {[%clk 0:00:16]} 67. Kf4 {[%clk 0:00:47]}  Ra6 {[%clk 0:00:15]} 68. Ke5 {[%clk 0:00:47]}  Rac6 {[%clk 0:00:16]} 69. Qg4+ {[%clk 0:00:46]}  Kf8 {[%clk 0:00:16]} 70. Qd4 {[%clk 0:00:45]}  Ra6 {[%clk 0:00:15]} 71. Qd2 {[%clk 0:00:44]}  Kg7 {[%clk 0:00:14]} 72. Qb4 {[%clk 0:00:44]}  Rac6 {[%clk 0:00:13]} 73. Kd5 {[%clk 0:00:43]}  Ra6 {[%clk 0:00:13]} 74. Qg4+ {[%clk 0:00:38]}  Kf8 {[%clk 0:00:12]} 75. Qb4+ {[%clk 0:00:36]}  Kg7 {[%clk 0:00:12]} 76. Ke4 {[%clk 0:00:36]}  Rac6 {[%clk 0:00:13]} 77. Qb5 {[%clk 0:00:33]}  Ra6 {[%clk 0:00:12]} 78. Kd4 {[%clk 0:00:32]}  Rac6 {[%clk 0:00:12]} 79. Qe5 {[%clk 0:00:31]}  Rd6+ {[%clk 0:00:10]} 80. Kc5 {[%clk 0:00:30]}  Ra6 {[%clk 0:00:10]} 81. Kb5 {[%clk 0:00:30]}  Rd6 {[%clk 0:00:10]} 82. Qg3+ {[%clk 0:00:29]}  Kh7 {[%clk 0:00:10]} 83. Qe5 {[%clk 0:00:30]}  Kg7 {[%clk 0:00:10]} 84. Kb4 {[%clk 0:00:30]}  Ra6 {[%clk 0:00:10]} 85. Qc5 {[%clk 0:00:30]}  Rad6 {[%clk 0:00:11]} 86. Qc7 {[%clk 0:00:30]}  Kh7 {[%clk 0:00:10]} 87. Qe7 {[%clk 0:00:29]}  Kg7 {[%clk 0:00:10]} 88. Qc7 {[%clk 0:00:28]}  Rd5 {[%clk 0:00:10]} 89. Qg3+ {[%clk 0:00:26]}  Kh7 {[%clk 0:00:09]} 90. Qf3 {[%clk 0:00:25]}  Rfxf5 {[%clk 0:00:08]} 91. Qe4 {[%clk 0:00:23]}  Rxa5 {[%clk 0:00:09]} 92. Qe8 {[%clk 0:00:23]}  Rae5 {[%clk 0:00:08]} 93. Qf8 {[%clk 0:00:23]}  Re6 {[%clk 0:00:08]} 94. Kc4 {[%clk 0:00:22]}  Ref6 {[%clk 0:00:08]} 95. Qe7 {[%clk 0:00:20]}  Kg7 {[%clk 0:00:08]} 96. Qe2 {[%clk 0:00:21]}  Rg5 {[%clk 0:00:08]} 97. Qd1 {[%clk 0:00:20]}  Rf4+ {[%clk 0:00:08]} 98. Kc3 {[%clk 0:00:18]}  Rg3+ {[%clk 0:00:08]} 99. Kc2 {[%clk 0:00:19]}  Rf2+ {[%clk 0:00:08]} 100. Kc1 {[%clk 0:00:19]}  Rgf3 {[%clk 0:00:07]} 101. Qd4+ {[%clk 0:00:19]}  Rf6 {[%clk 0:00:07]} 102. Qg4+ {[%clk 0:00:19]}  Kh7 {[%clk 0:00:07]} 103. Qe4+ {[%clk 0:00:19]}  R2f5 {[%clk 0:00:07]} 104. Kd2 {[%clk 0:00:19]}  Kg7 {[%clk 0:00:08]} 105. Qg4+ {[%clk 0:00:20]}  Rg5 {[%clk 0:00:08]} 106. Qh4 {[%clk 0:00:20]}  Rff5 {[%clk 0:00:08]} 107. Qd4+ {[%clk 0:00:20]}  Re5 {[%clk 0:00:09]} 108. Qa1 {[%clk 0:00:16]}  Rxh5 {[%clk 0:00:10]} 109. Kd3 {[%clk 0:00:17]}  Rf5 {[%clk 0:00:10]} 110. Qh1 {[%clk 0:00:17]}  Rg5 {[%clk 0:00:10]} 111. Kd4 {[%clk 0:00:18]}  Ref5 {[%clk 0:00:10]} 112. Ke4 {[%clk 0:00:18]}  Kg6 {[%clk 0:00:11]} 113. Qb1 {[%clk 0:00:18]}  f6 {[%clk 0:00:11]} 114. Qb8 {[%clk 0:00:18]}  Rg4+ {[%clk 0:00:11]} 115. Ke3 {[%clk 0:00:19]}  Rgg5 {[%clk 0:00:11]} 116. Qe8+ {[%clk 0:00:18]}  Kh7 {[%clk 0:00:10]} 117. Qd7+ {[%clk 0:00:18]}  Kg8 {[%clk 0:00:09]} 118. Qe8+ {[%clk 0:00:18]}  Kg7 {[%clk 0:00:10]} 119. Qd7+ {[%clk 0:00:19]}  Kf8 {[%clk 0:00:09]} 120. Qd8+ {[%clk 0:00:19]}  Kf7 {[%clk 0:00:10]} 121. Qd7+ {[%clk 0:00:20]}  Kg6 {[%clk 0:00:10]} 122. Qe8+ {[%clk 0:00:21]}  Kg7 {[%clk 0:00:10]} 123. Qd7+ {[%clk 0:00:20]}  Kh8 {[%clk 0:00:11]} 124. Qc8+ {[%clk 0:00:19]}  Kh7 {[%clk 0:00:10]} 125. Qd7+ {[%clk 0:00:19]}  Kg8 {[%clk 0:00:10]} 126. Qe8+ {[%clk 0:00:19]}  Kg7 {[%clk 0:00:10]} 1/2-1/2


[Site "https://www.chess.com"]

[Event "Titled Tuesday Blitz July 11 Late 2023"]
[White "Mei, Austin"]
[Black "Maghsoodloo, Parham"]
[WhiteFideId "30948479"]
[BlackFideId "12539929"]
[WhiteElo "2496"]
[BlackElo "2974"]
[Result "0-1"]
[Round "1"]
[TimeControl "180+2"]
[Date "2023.07.11"]
[WhiteClock "0:00:02"]
[BlackClock "0:00:03"]
[Board "23"]

1. e4 {[%clk 0:03:00]}  c5 {[%clk 0:02:57]} 2. Nf3 {[%clk 0:02:59]}  Nc6 {[%clk 0:02:57]} 3. d4 {[%clk 0:02:59]}  cxd4 {[%clk 0:02:57]} 4. Nxd4 {[%clk 0:03:00]}  e5 {[%clk 0:02:58]} 5. Nb5 {[%clk 0:03:00]}  d6 {[%clk 0:02:58]} 6. c4 {[%clk 0:03:00]}  Be6 {[%clk 0:02:57]} 7. N1c3 {[%clk 0:02:56]}  a6 {[%clk 0:02:54]} 8. Na3 {[%clk 0:02:56]}  Nf6 {[%clk 0:02:54]} 9. Bd3 {[%clk 0:02:56]}  g6 {[%clk 0:02:54]} 10. O-O {[%clk 0:02:56]}  Bg7 {[%clk 0:02:55]} 11. Nd5 {[%clk 0:02:47]}  O-O {[%clk 0:02:52]} 12. Be3 {[%clk 0:02:46]}  Nd4 {[%clk 0:02:50]} 13. Nc2 {[%clk 0:02:41]}  Ng4 {[%clk 0:02:27]} 14. Bd2 {[%clk 0:02:16]}  Nxc2 {[%clk 0:02:25]} 15. Qxc2 {[%clk 0:02:10]}  f5 {[%clk 0:02:25]} 16. h3 {[%clk 0:02:09]}  Nh6 {[%clk 0:02:21]} 17. exf5 {[%clk 0:01:54]}  Nxf5 {[%clk 0:02:12]} 18. Be4 {[%clk 0:01:48]}  Rc8 {[%clk 0:01:42]} 19. Qd3 {[%clk 0:01:46]}  Rf7 {[%clk 0:01:37]} 20. Rad1 {[%clk 0:01:40]}  Qh4 {[%clk 0:01:35]} 21. b3 {[%clk 0:01:13]}  Rcf8 {[%clk 0:01:29]} 22. Ne3 {[%clk 0:00:45]}  Nd4 {[%clk 0:01:29]} 23. Be1 {[%clk 0:00:45]}  Bh6 {[%clk 0:01:18]} 24. f3 {[%clk 0:00:30]}  Qh5 {[%clk 0:01:12]} 25. Ng4 {[%clk 0:00:29]}  Bg7 {[%clk 0:01:06]} 26. Bf2 {[%clk 0:00:26]}  Qg5 {[%clk 0:01:05]} 27. Be3 {[%clk 0:00:26]}  Qh4 {[%clk 0:01:05]} 28. Bf2 {[%clk 0:00:26]}  Qe7 {[%clk 0:01:04]} 29. Ne3 {[%clk 0:00:26]}  Qg5 {[%clk 0:00:58]} 30. Bd5 {[%clk 0:00:26]}  Nxf3+ {[%clk 0:00:43]} 31. Kh1 {[%clk 0:00:25]}  Nd4 {[%clk 0:00:30]} 32. Bxe6 {[%clk 0:00:25]}  Nxe6 {[%clk 0:00:31]} 33. Bg1 {[%clk 0:00:24]}  Nd4 {[%clk 0:00:26]} 34. Qe4 {[%clk 0:00:17]}  Rxf1 {[%clk 0:00:25]} 35. Rxf1 {[%clk 0:00:17]}  Rxf1 {[%clk 0:00:25]} 36. Nxf1 {[%clk 0:00:18]}  Qf5 {[%clk 0:00:26]} 37. Qd5+ {[%clk 0:00:18]}  Qf7 {[%clk 0:00:26]} 38. Bxd4 {[%clk 0:00:16]}  Qxd5 {[%clk 0:00:26]} 39. cxd5 {[%clk 0:00:17]}  exd4 {[%clk 0:00:26]} 40. Kg1 {[%clk 0:00:15]}  Kf7 {[%clk 0:00:25]} 41. Kf2 {[%clk 0:00:16]}  Kf6 {[%clk 0:00:25]} 42. Ke2 {[%clk 0:00:16]}  d3+ {[%clk 0:00:16]} 43. Kxd3 {[%clk 0:00:16]}  Ke5 {[%clk 0:00:17]} 44. Ne3 {[%clk 0:00:11]}  h5 {[%clk 0:00:16]} 45. g3 {[%clk 0:00:11]}  Bh6 {[%clk 0:00:16]} 46. Nc4+ {[%clk 0:00:08]}  Kxd5 {[%clk 0:00:16]} 47. g4 {[%clk 0:00:09]}  hxg4 {[%clk 0:00:16]} 48. hxg4 {[%clk 0:00:10]}  b5 {[%clk 0:00:16]} 49. Na3 {[%clk 0:00:08]}  Ke5 {[%clk 0:00:10]} 50. Nc2 {[%clk 0:00:09]}  Kf4 {[%clk 0:00:10]} 51. Nb4 {[%clk 0:00:09]}  a5 {[%clk 0:00:09]} 52. Nc6 {[%clk 0:00:09]}  a4 {[%clk 0:00:08]} 53. bxa4 {[%clk 0:00:09]}  bxa4 {[%clk 0:00:08]} 54. Ne7 {[%clk 0:00:10]}  g5 {[%clk 0:00:06]} 55. Nf5 {[%clk 0:00:09]}  Bf8 {[%clk 0:00:06]} 56. Ne3 {[%clk 0:00:09]}  Bg7 {[%clk 0:00:06]} 57. Nc4 {[%clk 0:00:06]}  Be5 {[%clk 0:00:05]} 58. Ne3 {[%clk 0:00:03]}  Kf3 {[%clk 0:00:04]} 59. a3 {[%clk 0:00:02]}  Bf4 {[%clk 0:00:04]} 60. Nc4 {[%clk 0:00:01]}  Kxg4 {[%clk 0:00:04]} 61. Ke4 {[%clk 0:00:02]}  Kh3 {[%clk 0:00:04]} 62. Kf3 {[%clk 0:00:02]}  d5 {[%clk 0:00:03]} 63. Kf2 {[%clk 0:00:02]}  dxc4 {[%clk 0:00:03]} 0-1


[Site "https://www.chess.com"]

[Event "Titled Tuesday Blitz July 11 Late 2023"]
[White "Novikov, Evgenij"]
[Black "Sviridov, Valery"]
[WhiteFideId "4125380"]
[BlackFideId "4120680"]
[WhiteElo "2495"]
[BlackElo "2970"]
[Result "0-1"]
[Round "1"]
[TimeControl "180+2"]
[Date "2023.07.11"]
[WhiteClock "0:00:52"]
[BlackClock "0:01:58"]
[Board "25"]

1. d4 {[%clk 0:02:59]}  Nf6 {[%clk 0:02:59]} 2. c4 {[%clk 0:02:58]}  b6 {[%clk 0:02:59]} 3. Nc3 {[%clk 0:02:57]}  Bb7 {[%clk 0:02:59]} 4. Nf3 {[%clk 0:02:57]}  g6 {[%clk 0:02:59]} 5. d5 {[%clk 0:02:55]}  e6 {[%clk 0:02:57]} 6. e4 {[%clk 0:02:55]}  Bg7 {[%clk 0:02:56]} 7. Bd3 {[%clk 0:02:54]}  O-O {[%clk 0:02:56]} 8. O-O {[%clk 0:02:54]}  Na6 {[%clk 0:02:55]} 9. Re1 {[%clk 0:02:50]}  Nc5 {[%clk 0:02:53]} 10. Bc2 {[%clk 0:02:49]}  a5 {[%clk 0:02:53]} 11. e5 {[%clk 0:02:39]}  Ne8 {[%clk 0:02:49]} 12. Bg5 {[%clk 0:02:32]}  f6 {[%clk 0:02:48]} 13. exf6 {[%clk 0:02:28]}  Bxf6 {[%clk 0:02:47]} 14. Be3 {[%clk 0:02:19]}  Nd6 {[%clk 0:02:19]} 15. Nd2 {[%clk 0:01:56]}  exd5 {[%clk 0:02:15]} 16. Nxd5 {[%clk 0:01:52]}  Bxd5 {[%clk 0:02:14]} 17. cxd5 {[%clk 0:01:51]}  Bxb2 {[%clk 0:02:14]} 18. Qg4 {[%clk 0:01:36]}  Bxa1 {[%clk 0:02:10]} 19. Rxa1 {[%clk 0:01:35]}  Qf6 {[%clk 0:02:09]} 20. Bd4 {[%clk 0:01:34]}  Qf4 {[%clk 0:02:09]} 21. Qxf4 {[%clk 0:01:25]}  Rxf4 {[%clk 0:02:10]} 22. Be5 {[%clk 0:01:20]}  Rf7 {[%clk 0:02:09]} 23. Bxd6 {[%clk 0:01:19]}  cxd6 {[%clk 0:02:09]} 24. Nc4 {[%clk 0:01:19]}  Rf6 {[%clk 0:02:04]} 25. Nxb6 {[%clk 0:01:15]}  Rb8 {[%clk 0:02:04]} 26. Nc4 {[%clk 0:01:15]}  Rb4 {[%clk 0:02:04]} 27. Ne3 {[%clk 0:00:52]}  Rb2 {[%clk 0:01:58]} 0-1


[Site "https://www.chess.com"]

[Event "Titled Tuesday Blitz July 11 Late 2023"]
[White "Makarian, Rudik"]
[Black "Liu, Casper"]
[WhiteFideId "44105681"]
[BlackFideId "1454153"]
[WhiteElo "2965"]
[BlackElo "2492"]
[Result "1-0"]
[Round "1"]
[TimeControl "180+2"]
[Date "2023.07.11"]
[WhiteClock "0:00:39"]
[BlackClock "0:00:08"]
[Board "26"]

1. d4 {[%clk 0:02:38]}  d5 {[%clk 0:02:58]} 2. c4 {[%clk 0:02:37]}  e6 {[%clk 0:02:58]} 3. Nf3 {[%clk 0:02:34]}  Nf6 {[%clk 0:02:59]} 4. Nc3 {[%clk 0:02:34]}  Be7 {[%clk 0:02:59]} 5. Bf4 {[%clk 0:02:34]}  O-O {[%clk 0:02:59]} 6. e3 {[%clk 0:02:35]}  c5 {[%clk 0:02:57]} 7. dxc5 {[%clk 0:02:34]}  Bxc5 {[%clk 0:02:57]} 8. a3 {[%clk 0:02:35]}  a6 {[%clk 0:02:41]} 9. cxd5 {[%clk 0:02:24]}  Nxd5 {[%clk 0:02:38]} 10. Nxd5 {[%clk 0:02:24]}  exd5 {[%clk 0:02:36]} 11. Bd3 {[%clk 0:02:18]}  Bg4 {[%clk 0:02:12]} 12. O-O {[%clk 0:02:14]}  Nc6 {[%clk 0:02:07]} 13. Rc1 {[%clk 0:02:14]}  Bd6 {[%clk 0:01:52]} 14. Bxd6 {[%clk 0:02:11]}  Qxd6 {[%clk 0:01:53]} 15. h3 {[%clk 0:02:11]}  Bh5 {[%clk 0:01:41]} 16. Be2 {[%clk 0:02:09]}  Rae8 {[%clk 0:01:35]} 17. Nd4 {[%clk 0:02:02]}  Bxe2 {[%clk 0:01:33]} 18. Nxe2 {[%clk 0:02:03]}  Re4 {[%clk 0:01:28]} 19. Nc3 {[%clk 0:02:01]}  Re5 {[%clk 0:01:27]} 20. Qb3 {[%clk 0:01:59]}  d4 {[%clk 0:01:12]} 21. Rfd1 {[%clk 0:01:51]}  Qh6 {[%clk 0:00:38]} 22. exd4 {[%clk 0:01:37]}  Nxd4 {[%clk 0:00:39]} 23. Qxb7 {[%clk 0:01:35]}  Ne2+ {[%clk 0:00:23]} 24. Nxe2 {[%clk 0:01:35]}  Rxe2 {[%clk 0:00:24]} 25. Rc6 {[%clk 0:01:27]}  Qf4 {[%clk 0:00:20]} 26. Rf1 {[%clk 0:01:19]}  a5 {[%clk 0:00:18]} 27. Rc8 {[%clk 0:01:09]}  g6 {[%clk 0:00:15]} 28. Rxf8+ {[%clk 0:01:07]}  Kxf8 {[%clk 0:00:16]} 29. Qa8+ {[%clk 0:01:05]}  Kg7 {[%clk 0:00:15]} 30. Qxa5 {[%clk 0:01:06]}  Rxb2 {[%clk 0:00:16]} 31. Qc3+ {[%clk 0:01:06]}  Qf6 {[%clk 0:00:16]} 32. Qxf6+ {[%clk 0:01:07]}  Kxf6 {[%clk 0:00:16]} 33. Ra1 {[%clk 0:01:07]}  Rb5 {[%clk 0:00:16]} 34. a4 {[%clk 0:01:07]}  Ra5 {[%clk 0:00:17]} 35. g4 {[%clk 0:01:06]}  Ke5 {[%clk 0:00:17]} 36. Kg2 {[%clk 0:01:06]}  f5 {[%clk 0:00:16]} 37. Kg3 {[%clk 0:01:05]}  fxg4 {[%clk 0:00:16]} 38. hxg4 {[%clk 0:01:05]}  Kf6 {[%clk 0:00:16]} 39. Kf4 {[%clk 0:01:02]}  h5 {[%clk 0:00:15]} 40. f3 {[%clk 0:01:01]}  hxg4 {[%clk 0:00:15]} 41. fxg4 {[%clk 0:01:01]}  g5+ {[%clk 0:00:15]} 42. Ke4 {[%clk 0:01:01]}  Ke6 {[%clk 0:00:15]} 43. Kd4 {[%clk 0:01:00]}  Kd6 {[%clk 0:00:16]} 44. Ra2 {[%clk 0:00:49]}  Rd5+ {[%clk 0:00:14]} 45. Ke4 {[%clk 0:00:48]}  Ra5 {[%clk 0:00:13]} 46. Rd2+ {[%clk 0:00:46]}  Ke6 {[%clk 0:00:13]} 47. Rd4 {[%clk 0:00:47]}  Re5+ {[%clk 0:00:13]} 48. Kd3 {[%clk 0:00:47]}  Rc5 {[%clk 0:00:12]} 49. Rc4 {[%clk 0:00:42]}  Ra5 {[%clk 0:00:11]} 50. Kd4 {[%clk 0:00:40]}  Kd6 {[%clk 0:00:10]} 51. Rb4 {[%clk 0:00:36]}  Kc6 {[%clk 0:00:08]} 52. Ke4 {[%clk 0:00:36]}  Kc5 {[%clk 0:00:06]} 53. Rb5+ {[%clk 0:00:36]}  Rxb5 {[%clk 0:00:06]} 54. axb5 {[%clk 0:00:37]}  Kxb5 {[%clk 0:00:07]} 55. Kf5 {[%clk 0:00:38]}  Kc6 {[%clk 0:00:08]} 56. Kxg5 {[%clk 0:00:38]}  Kd7 {[%clk 0:00:09]} 57. Kf6 {[%clk 0:00:38]}  Ke8 {[%clk 0:00:10]} 58. Kg7 {[%clk 0:00:38]}  Ke7 {[%clk 0:00:10]} 59. g5 {[%clk 0:00:38]}  Ke8 {[%clk 0:00:08]} 60. g6 {[%clk 0:00:39]} 1-0


[Site "https://www.chess.com"]